bitfinex/quotes_ETHUSD_20250807
["timestamp","ask_amount","ask_price","bid_price","bid_amount"]
[1754589299253,0.002,3832.6,3832.4,2.60928571]
[1754589299439,4.36037629,3832.5,3832.4,2.60928571]
[1754589299640,4.36036833,3832.5,3832.4,2.60928571]
[1754589299843,4.36036833,3832.5,3832.4,3.08508571]
[1754589300144,4.1164,3832.5,3832.4,3.92897249]
[1754589300342,0.1304,3832.5,3832.4,3.92897249]
[1754589300648,3.986,3832.5,3832.4,3.92897249]
[1754589300859,0.002,3832.6,3832.5,2.60926288]
[1754589301063,0.002,3832.6,3832.5,3.85061642]
[1754589301257,0.002,3832.6,3832.5,4.57131642]
[1754589302467,0.002,3832.6,3832.5,3.30061642]
[1754589302882,0.002,3832.6,3832.5,3.77641642]
[1754589303388,0.002,3832.6,3832.5,3.30061642]
[1754589303689,0.002,3832.6,3832.5,3.77641642]
[1754589304759,0.002,3832.6,3832.5,3.30061642]
[1754589304955,0.002,3832.6,3832.5,3.90681642]
[1754589307459,0.002,3832.6,3832.5,3.43101642]
[1754589308890,0.002,3832.6,3832.5,3.90681642]
[1754589310709,0.002,3832.6,3832.5,3.43101642]
[1754589313392,0.002,3832.6,3832.5,3.90681642]
[1754589314071,0.002,3832.6,3832.5,4.70171642]
[1754589314467,1e-08,3832.8,3832.7,6.15912672]
[1754589314668,1e-08,3833.3,3833.2,6.15878639]
[1754589315021,1e-08,3833.3,3833.2,24.19521493]
[1754589315221,1e-08,3833.4,3833.3,6.15871833]
[1754589315366,1e-08,3833.6,3833.5,3.15858223]
[1754589315568,1e-08,3833.6,3833.5,9.95686151]
[1754589315868,1e-08,3833.6,3833.5,10.67756151]
[1754589322100,1.69301506,3836.5,3835.5,0.55]
[1754589322302,3.23670826,3838.0,3836.5,0.55]
[1754589322303,0.03257413,3837.4,3836.5,0.55]
[1754589322509,0.9297,3837.3,3836.6,3.988]
[1754589322662,0.24229402,3837.8,3836.9,2.6062206]
[1754589322866,0.24229402,3837.8,3836.7,3.15635703]
[1754589322867,0.9297,3837.2,3836.6,3.992]
[1754589323064,0.9297,3837.2,3837.1,2.60613484]
[1754589323264,0.9297,3837.8,3837.2,0.55]
[1754589323513,2.31193447,3838.6,3837.3,4.005]
[1754589323802,2.31193447,3838.6,3836.7,0.4758]
[1754589323803,0.56375825,3838.5,3837.0,4.005]
[1754589323970,2.60555826,3838.0,3837.0,2.60618039]
[1754589324170,0.4664,3837.9,3836.7,0.55]
[1754589324369,0.4664,3837.9,3837.3,2.60596746]
[1754589324595,0.4664,3837.9,3837.1,2.60612117]
[1754589324766,0.4664,3837.9,3837.0,0.55]
[1754589324968,0.4664,3837.9,3837.4,2.60586937]
[1754589325401,0.4664,3837.9,3837.2,2.60605073]
[1754589325594,0.4633,3837.8,3837.5,2.60582796]
[1754589325808,0.9297,3837.7,3837.5,2.60580062]
[1754589326007,4.007,3838.3,3837.6,2.60579528]
[1754589326323,0.89242502,3838.2,3836.9,3.15627068]
[1754589326531,2.31193447,3838.5,3837.2,0.55]
[1754589326677,2.31193447,3838.5,3837.1,13.04526299]
[1754589326678,0.9297,3838.4,3837.1,0.55]
[1754589326882,0.9297,3838.4,3836.6,13.04526299]
[1754589326883,3.56762862,3838.3,3836.6,0.55]
[1754589327140,4.012,3838.2,3837.2,2.60604757]
[1754589327346,2.60566605,3837.8,3836.7,3.0]
[1754589327487,0.9297,3837.7,3836.9,2.6062188]
[1754589327837,0.9297,3837.6,3836.9,2.6062188]
[1754589328037,0.9294,3837.5,3836.5,3.15647454]
[1754589328234,0.9294,3837.4,3836.7,2.60639582]
[1754589328396,2.63848703,3837.5,3836.7,2.60639582]
[1754589328601,0.44457682,3838.0,3836.1,0.55]
[1754589328602,0.9294,3837.3,3836.1,0.55]
[1754589328933,0.9294,3837.2,3836.8,2.60628121]
[1754589329240,0.9294,3837.1,3836.9,2.60626503]
[1754589329387,0.74631861,3837.9,3836.6,2.60641675]
[1754589329730,0.9294,3837.0,3836.1,3.0]
[1754589329885,0.96197838,3836.9,3835.5,11.26812115]
[1754589330089,1.28621977,3836.8,3836.2,0.55]
[1754589330319,0.9294,3836.8,3836.0,0.55]
[1754589330493,0.9294,3836.8,3836.5,2.6065168]
[1754589330693,0.9294,3836.8,3836.0,3.15688216]
[1754589330893,0.4614,3837.1,3836.7,2.606346]
[1754589331096,0.4012,3837.2,3835.9,4.3099]
[1754589331325,4.014,3837.4,3837.1,2.60608334]
[1754589331633,0.9294,3837.4,3836.7,0.55]
[1754589331828,0.468,3837.8,3837.5,2.60581853]
[1754589332034,0.468,3837.8,3837.7,2.60572738]
[1754589332204,0.468,3837.8,3837.6,2.60577483]
[1754589332518,0.9294,3837.8,3837.6,2.60577483]
[1754589332949,0.9294,3837.8,3837.6,2.60579528]
[1754589333162,0.4614,3837.7,3837.5,0.1304]
[1754589333318,0.468,3837.6,3836.7,0.55]
[1754589333525,0.5918,3837.5,3837.1,2.60606984]
[1754589333835,0.9294,3837.4,3837.1,2.60606984]
[1754589334170,0.9294,3837.3,3837.2,2.60606692]
[1754589334535,3.0,3838.7,3837.2,2.60606692]
[1754589334536,4.9444,3837.9,3837.2,2.60606692]
[1754589334760,1.09237074,3837.8,3837.3,2.60597787]
[1754589335056,0.9294,3837.7,3837.0,2.60620276]
[1754589335210,0.1304,3837.5,3837.1,2.60612584]
[1754589335408,0.82476342,3837.6,3837.3,2.60598532]
[1754589335610,0.5984,3837.6,3837.2,2.60605631]
[1754589335809,0.9294,3837.5,3837.2,2.60605631]
[1754589336020,0.1304,3837.6,3837.2,2.60605631]
[1754589336021,0.9294,3837.4,3837.2,2.60605631]
[1754589336225,0.9294,3837.4,3836.9,2.73660816]
[1754589336226,0.1304,3837.6,3837.3,2.60599364]
[1754589336447,0.1304,3837.6,3837.0,2.60619004]
[1754589336646,0.1304,3837.6,3837.0,2.60620276]
[1754589336850,0.9294,3837.5,3837.2,2.60601765]
[1754589337144,0.9294,3837.4,3837.2,2.60601765]
[1754589337352,0.9294,3837.3,3837.2,2.60601765]
[1754589338761,0.9294,3837.3,3836.9,2.73666085]
[1754589338914,0.9294,3837.2,3836.8,2.6063058]
[1754589339116,0.9294,3837.1,3836.8,2.6063058]
[1754589339313,0.9294,3837.0,3836.4,0.55]
[1754589339550,1.42364,3837.0,3836.6,2.73685456]
[1754589339735,1.42364,3837.0,3836.7,2.6064005]
[1754589339937,0.49424,3837.0,3836.6,2.736856]
[1754589340479,0.9294,3836.9,3836.6,2.736856]
[1754589340654,0.49424,3837.0,3836.6,2.736856]
[1754589340655,0.49424,3837.0,3836.6,0.1304]
[1754589340656,0.96197923,3836.8,3836.6,0.1304]
[1754589340855,0.96197923,3836.8,3836.3,2.73703226]
[1754589340856,0.9294,3836.7,3836.3,2.73703226]
[1754589341153,0.9294,3836.6,3836.0,2.60683058]
[1754589341357,0.1304,3836.5,3836.0,2.60683058]
[1754589341652,1.0598,3836.5,3836.0,2.60683221]
[1754589341856,1.0598,3836.5,3835.6,3.0]
[1754589341857,2.60673811,3836.3,3835.6,2.6071112]
[1754589342076,0.96198432,3836.2,3835.5,6.80122115]
[1754589342355,0.1304,3836.0,3835.5,6.80122115]
[1754589342657,1.49079495,3835.9,3835.5,6.80122115]
[1754589342869,0.56140696,3835.8,3835.5,6.80122115]
[1754589343081,0.03258517,3836.1,3835.5,6.80122115]
[1754589343082,1.49080696,3835.7,3835.5,6.80122115]
[1754589343236,0.56136376,3835.6,3835.5,6.80122115]
[1754589343561,2.607222,3835.5,3835.4,0.001]
[1754589343730,2.60728998,3835.4,3834.0,2.60817404]
[1754589344058,2.60749297,3835.2,3834.2,2.60809699]
[1754589344269,2.60749297,3835.2,3833.4,7.37240942]
[1754589344270,4.77770179,3835.1,3834.3,2.60801837]
[1754589344475,1.73290851,3835.0,3834.2,2.60809881]
[1754589344645,5.74790851,3834.9,3834.2,2.60809881]
[1754589344845,0.80350851,3834.8,3834.3,2.60798148]
[1754589345057,1.17154475,3834.7,3834.3,2.60798148]
[1754589345257,0.9294,3834.7,3834.4,2.60796422]
[1754589345458,0.9294,3834.7,3834.5,2.60789891]
[1754589345654,0.9294,3834.7,3834.3,2.60797794]
[1754589346066,0.56060966,3834.6,3834.3,2.60797794]
[1754589346241,0.56060966,3834.5,3834.3,2.60797794]
[1754589346452,0.9294,3834.8,3834.4,2.607958]
[1754589346668,1.73174652,3834.7,3834.0,2.60824204]
[1754589346854,1.52199248,3834.6,3833.6,0.13589933]
[1754589347055,1.48939456,3834.5,3833.7,2.60844614]
[1754589347259,0.9294,3834.5,3833.6,0.59079933]
[1754589347460,4.014,3834.4,3833.6,1.24033609]
[1754589347640,0.9294,3834.3,3833.7,2.60844614]
[1754589347997,0.9294,3834.2,3833.6,0.13589933]
[1754589348345,0.9294,3834.2,3833.8,2.60831239]
[1754589348878,0.4614,3834.1,3833.8,2.60831239]
[1754589349085,0.24231133,3834.3,3833.6,0.13589933]
[1754589349260,0.9294,3834.0,3833.8,2.60837127]
[1754589349652,0.9294,3834.3,3833.8,2.60837127]
[1754589349847,0.9294,3834.2,3833.8,2.60837127]
[1754589350177,0.468,3834.2,3833.7,2.60843591]
[1754589350376,0.9294,3834.1,3833.6,0.13589933]
[1754589350578,0.24225261,3834.3,3833.7,2.60843751]
[1754589350785,0.9294,3834.0,3833.8,2.60836926]
[1754589351365,0.9294,3834.0,3833.7,2.60842188]
[1754589351799,4.014,3834.4,3833.8,2.60835192]
[1754589352177,0.9294,3834.3,3833.7,2.60842524]
[1754589352382,0.9294,3834.2,3833.6,0.13589933]
[1754589352795,0.96200217,3834.1,3833.6,0.13589933]
[1754589353007,0.9294,3834.0,3833.6,0.13589933]
[1754589353195,0.9294,3834.0,3833.6,2.7444128]
[1754589353414,0.1304,3833.8,3833.6,0.13589933]
[1754589353726,14.5,3833.7,3833.6,2.74441352]
[1754589354913,0.1304,3833.8,3833.7,2.60844614]
[1754589355113,0.4614,3834.6,3834.1,2.60811144]
[1754589355314,4.1414,3834.5,3834.1,2.60817367]
[1754589355517,4.012,3834.5,3834.4,2.60791181]
[1754589355892,0.1304,3834.6,3834.5,2.60790194]
[1754589356090,0.24177531,3835.0,3834.1,0.5853]
[1754589356415,18.512,3834.9,3834.5,0.1304]
[1754589356603,19.4414,3834.9,3834.5,0.1304]
[1754589356804,18.98,3834.9,3834.5,2.73829649]
[1754589357107,0.9294,3834.8,3834.5,0.1304]
[1754589357719,14.5,3834.7,3834.6,2.60782456]
[1754589359017,14.5,3834.7,3834.5,0.1304]
[1754589359476,14.5,3834.7,3834.5,2.73830132]
[1754589359747,14.5,3834.7,3834.6,2.60783393]
[1754589360633,14.5,3834.7,3834.5,0.1304]
[1754589361132,4.4745,3834.9,3834.6,2.60779078]
[1754589361335,0.4315,3834.8,3834.5,2.73827732]
[1754589361569,0.4315,3834.8,3833.7,0.84173752]
[1754589361570,15.42659707,3834.7,3833.7,0.84173752]
[1754589361725,0.1304,3834.3,3833.8,0.26641091]
[1754589361936,4.906,3834.2,3833.9,2.6082699]
[1754589362269,0.92660217,3834.1,3833.8,2.87477524]
[1754589362413,0.92660302,3834.0,3833.8,0.13601091]
[1754589362614,0.1304,3833.9,3833.8,0.13601091]
[1754589362834,1.0244,3833.9,3833.8,0.13601091]
[1754589363527,14.6304,3834.1,3833.9,2.60830625]
[1754589363735,4.013,3834.1,3834.0,2.60824204]
[1754589364033,4.013,3834.1,3834.0,3.22134204]
[1754589364229,4.013,3834.1,3834.0,2.73864204]
[1754589366337,4.013,3834.1,3834.0,0.1304]
[1754589366537,4.013,3834.1,3833.8,2.7443785]
[1754589366748,0.92660302,3834.0,3833.8,0.13601091]
[1754589366957,0.894,3834.0,3833.8,0.13601091]
[1754589367157,4.013,3834.1,3833.8,0.13601091]
[1754589367341,2.60851419,3833.6,3833.5,0.001]
[1754589367543,6.78452061,3833.6,3833.5,0.001]
[1754589367742,5.0374,3833.6,3833.5,0.001]
[1754589367957,19.5374,3833.6,3833.5,0.001]
[1754589368154,15.5244,3833.6,3833.5,0.001]
[1754589368360,19.5384,3833.6,3833.5,0.001]
[1754589368555,18.6434,3833.6,3833.5,0.001]
[1754589369151,18.88649151,3833.6,3833.5,0.001]
[1754589369331,19.5374,3833.6,3833.5,0.001]
[1754589369536,22.38901414,3833.6,3833.5,0.001]
[1754589369731,22.25861414,3833.6,3833.5,0.001]
[1754589370047,19.65011442,3833.6,3833.5,0.001]
[1754589370437,19.65034232,3833.6,3833.5,0.001]
[1754589370869,22.25885651,3833.6,3833.5,0.001]
[1754589371065,19.65034232,3833.6,3833.5,0.001]
[1754589371938,22.25885651,3833.6,3833.5,0.001]
[1754589372137,19.65034232,3833.6,3833.5,0.001]
[1754589373049,20.2119041,3833.6,3833.5,0.001]
[1754589373243,22.82041829,3833.6,3833.5,0.001]
[1754589374768,19.3179041,3833.6,3833.5,0.001]
[1754589374962,20.2119041,3833.6,3833.5,0.001]
[1754589375973,22.82041829,3833.6,3833.5,0.001]
[1754589378472,22.82095046,3833.6,3833.5,0.001]
[1754589379888,22.82095046,3833.6,3832.8,0.001]
[1754589379889,2.60899058,3832.9,3832.8,0.001]
[1754589380095,7.59243923,3832.9,3832.8,0.001]
[1754589380255,8.45382685,3832.9,3832.8,0.001]
[1754589380579,24.06010048,3832.9,3832.8,0.001]
[1754589381823,27.06010048,3832.9,3832.8,1e-08]
[1754589382591,5.60905865,3832.8,3832.7,1e-08]
[1754589382764,19.45975791,3832.8,3832.7,1e-08]
[1754589382960,20.35375791,3832.8,3832.7,1e-08]
[1754589383155,35.92238262,3832.8,3832.7,1e-08]
[1754589384297,35.92176586,3832.8,3832.7,1e-08]
[1754589387194,36.02633086,3832.8,3832.7,1e-08]
[1754589387395,36.02606229,3832.8,3832.7,1e-08]
[1754589389500,36.02606229,3832.8,3832.4,1e-08]
[1754589389501,5.60926288,3832.5,3832.4,1e-08]
[1754589389683,10.55621382,3832.5,3832.4,1e-08]
[1754589390066,25.95311382,3832.5,3832.4,1e-08]
[1754589390265,25.71012466,3832.5,3832.4,1e-08]
[1754589390498,25.95300345,3832.5,3832.4,1e-08]
[1754589390707,27.02162816,3832.5,3832.4,1e-08]
[1754589390917,23.00962816,3832.5,3832.4,1e-08]
[1754589391117,27.02062816,3832.5,3832.4,1e-08]
[1754589393391,23.00962816,3832.5,3832.4,1e-08]
[1754589393699,26.12272816,3832.5,3832.4,1e-08]
[1754589395302,26.12272816,3832.5,3832.4,0.45540001]
[1754589396116,25.87984937,3832.5,3832.4,0.45540001]
[1754589396286,26.12297434,3832.5,3832.4,1e-08]
[1754589396681,26.1229849,3832.5,3832.4,1e-08]
[1754589397288,26.1229849,3832.5,3832.4,0.45540001]
[1754589397289,18.04436019,3832.5,3832.4,0.45540001]
[1754589397496,22.05336019,3832.5,3832.4,0.75030001]
[1754589397785,19.44409731,3832.5,3832.4,0.75030001]
[1754589397982,4.38253553,3832.5,3832.4,0.75030001]
[1754589398426,0.37353553,3832.5,3832.4,0.75030001]
[1754589398727,3.41199047,3833.6,3832.8,2.60905865]
[1754589398890,3.41199047,3833.6,3832.4,0.88070001]
[1754589398891,0.1304,3833.2,3832.9,3.35924665]
[1754589399221,18.511,3833.1,3833.0,0.7503]
[1754589399517,18.511,3833.1,3832.6,0.1304]
[1754589399718,2.60892251,3833.0,3832.4,1e-08]
[1754589399921,4.1404,3832.9,3832.5,0.4554]
[1754589400092,0.03261323,3832.8,3832.4,1e-08]
[1754589400293,0.1304,3832.5,3832.4,1e-08]
[1754589400487,4.1414,3832.5,3832.4,1e-08]
[1754589401817,4.1414,3832.5,3832.4,0.45540001]
[1754589402820,6.75066288,3832.5,3832.4,1e-08]
[1754589403193,4.1414,3832.5,3832.4,1e-08]
[1754589403788,4.1414,3832.5,3832.4,0.45540001]
[1754589403989,4.1414,3832.5,3832.4,3.35963097]
[1754589404345,4.011,3832.5,3832.4,3.95663974]
[1754589404828,0.1304,3833.0,3832.4,1.34730878]
[1754589404992,0.1304,3833.1,3832.9,2.60894738]
[1754589405187,4.01,3833.0,3832.8,2.60903495]
[1754589405392,18.51,3833.0,3832.6,2.73957743]
[1754589405592,18.51,3833.0,3832.8,2.6090056]
[1754589405922,18.51,3833.0,3832.9,0.7503]
[1754589406224,18.51,3833.0,3832.9,0.4554]
[1754589406225,4.01,3833.0,3832.9,0.4554]
[1754589409509,4.01,3833.0,3832.6,0.5858]
[1754589409708,4.01,3833.0,3832.8,2.60905681]
[1754589410027,4.01,3833.0,3832.9,0.4554]
[1754589410237,4.01,3833.0,3832.7,3.06450897]
[1754589410412,4.01,3833.0,3832.8,0.4554]
[1754589410607,4.01,3833.0,3832.6,0.1304]
[1754589411002,0.1304,3832.7,3832.4,1e-08]
[1754589411201,4.005,3832.6,3832.4,1e-08]
[1754589411400,4.005,3832.6,3832.4,0.45540001]
[1754589411713,4.005,3832.6,3832.5,3.06466288]
[1754589412032,4.005,3832.6,3832.5,0.7503]
[1754589412228,4.005,3832.6,3832.5,3.06466288]
[1754589412429,4.005,3832.6,3832.5,3.48996288]
[1754589413839,2.60886615,3833.1,3832.5,3.48996288]
[1754589414139,4.011,3833.0,3832.5,3.19506288]
[1754589414517,4.011,3833.0,3832.5,0.5858]
[1754589414701,0.8969,3832.9,3832.4,1e-08]
[1754589415048,0.8969,3832.9,3832.4,2.73972801]
[1754589415049,4.01,3832.8,3832.4,2.73972801]
[1754589415211,6.61906663,3832.8,3832.4,0.13040001]
[1754589415545,0.1304,3832.5,3832.4,1e-08]
[1754589415700,4.1394,3832.5,3832.4,1e-08]
[1754589418106,7.69516288,3832.5,3832.4,1e-08]
[1754589418821,8.7255864,3832.5,3832.4,1e-08]
[1754589419221,9.53062115,3832.5,3832.4,1e-08]
[1754589420111,12.53062115,3832.5,3832.4,1e-08]
[1754589420621,12.53068731,3832.5,3832.4,1e-08]
[1754589422302,12.28699314,3832.5,3832.4,1e-08]
[1754589422503,12.53074438,3832.5,3832.4,1e-08]
[1754589422934,12.53071412,3832.5,3832.4,1e-08]
[1754589423605,12.53100364,3832.5,3832.4,1e-08]
[1754589428341,12.53081136,3832.5,3832.4,1e-08]
[1754589429135,12.53281136,3832.5,3832.4,1e-08]
[1754589429450,8.52381136,3832.5,3832.4,1e-08]
[1754589429647,12.53081136,3832.5,3832.4,1e-08]
[1754589430513,8.52381136,3832.5,3832.4,1e-08]
[1754589430715,12.52981136,3832.5,3832.4,1e-08]
[1754589431323,12.52979304,3832.5,3832.4,1e-08]
[1754589431845,12.52980057,3832.5,3832.4,1e-08]
[1754589432715,22.83820613,3832.5,3832.4,1e-08]
[1754589436098,7.57730057,3832.5,3832.4,1e-08]
[1754589436260,10.54987705,3832.5,3832.4,1e-08]
[1754589436459,7.54987705,3832.5,3832.4,1e-08]
[1754589436757,10.54987705,3832.5,3832.4,1e-08]
[1754589437162,21.80478261,3832.5,3832.4,1e-08]
[1754589439201,20.85828261,3832.5,3832.4,1e-08]
[1754589439498,22.31679095,3832.5,3832.4,1e-08]
[1754589439687,11.44668913,3832.5,3832.4,1e-08]
[1754589439892,9.98818079,3832.5,3832.4,1e-08]
[1754589440300,9.98829267,3832.5,3832.4,1e-08]
[1754589441380,10.5497355,3832.5,3832.4,1e-08]
[1754589442272,6.5467355,3832.5,3832.4,1e-08]
[1754589442472,10.5487355,3832.5,3832.4,1e-08]
[1754589443387,10.54893315,3832.5,3832.4,1e-08]
[1754589445276,10.54693315,3832.5,3832.4,1e-08]
[1754589445490,10.54693315,3832.5,3832.4,0.48270001]
[1754589445491,7.54693315,3832.5,3832.4,0.48270001]
[1754589446191,6.98549032,3832.5,3832.4,0.48270001]
[1754589446397,7.54790913,3832.5,3832.4,1e-08]
[1754589446710,3.54790913,3832.5,3832.4,1e-08]
[1754589447012,6.98449032,3832.5,3832.4,1e-08]
[1754589447218,7.54690913,3832.5,3832.4,1e-08]
[1754589449330,7.54737306,3832.5,3832.4,1e-08]
[1754589451450,0.93911018,3832.5,3832.4,1e-08]
[1754589451741,6.98195425,3832.5,3832.4,0.47910001]
[1754589451945,6.98195425,3832.5,3832.4,1e-08]
[1754589452098,7.30033949,3832.5,3832.4,1e-08]
[1754589452294,7.54457081,3832.5,3832.4,1e-08]
[1754589452800,8.60605626,3832.5,3832.4,1e-08]
[1754589452999,9.51295626,3832.5,3832.4,1e-08]
[1754589455144,9.51295834,3832.5,3832.4,1e-08]
[1754589455650,3.54857289,3832.5,3832.4,1e-08]
[1754589455851,6.97989628,3832.5,3832.4,1e-08]
[1754589456020,7.54257289,3832.5,3832.4,1e-08]
[1754589456351,7.54257658,3832.5,3832.4,1e-08]
[1754589456551,7.54257658,3832.5,3832.4,0.47910001]
[1754589456845,7.54257658,3832.5,3832.4,1e-08]
[1754589457279,8.44947658,3832.5,3832.4,1e-08]
[1754589458332,8.44950193,3832.5,3832.4,1e-08]
[1754589459236,7.54261996,3832.5,3832.4,1e-08]
[1754589460877,0.93935708,3832.5,3832.4,1e-08]
[1754589461064,4.37068047,3832.5,3832.4,0.77400001]
[1754589461938,4.37068047,3832.5,3832.4,1e-08]
[1754589462575,7.01255913,3832.5,3832.4,1e-08]
[1754589462774,6.97994335,3832.5,3832.4,1e-08]
[1754589463740,7.44104335,3832.5,3832.4,1e-08]
[1754589463940,8.00399318,3832.5,3832.4,1e-08]
[1754589464479,9.55569085,3832.5,3832.4,1e-08]
[1754589465569,4.8032303,3832.5,3832.4,1e-08]
[1754589465765,4.37068047,3832.5,3832.4,1e-08]
[1754589465990,4.37068047,3832.5,3832.4,0.47910001]
[1754589466193,8.35200896,3832.5,3832.4,1e-08]
[1754589466379,8.31939318,3832.5,3832.4,1e-08]
[1754589467192,8.319645,3832.5,3832.4,1e-08]
[1754589468181,22.819645,3832.5,3832.4,1e-08]
[1754589469898,21.912745,3832.5,3832.4,1e-08]
[1754589470089,17.918745,3832.5,3832.4,1e-08]
[1754589470273,21.91272974,3832.5,3832.4,0.47910001]
[1754589470595,21.91272974,3832.5,3832.4,1e-08]
[1754589471313,21.66821271,3832.5,3832.4,1e-08]
[1754589471459,22.57511271,3832.5,3832.4,1e-08]
[1754589471665,21.66821271,3832.5,3832.4,1e-08]
[1754589472202,21.91271793,3832.5,3832.4,1e-08]
[1754589472596,19.30345505,3832.5,3832.4,0.47910001]
[1754589472796,21.91271793,3832.5,3832.4,0.47910001]
[1754589472971,21.66821271,3832.5,3832.4,0.47910001]
[1754589473172,21.91271161,3832.5,3832.4,0.47910001]
[1754589473384,21.91271161,3832.5,3832.4,1e-08]
[1754589473902,21.66821271,3832.5,3832.4,1e-08]
[1754589474201,21.91271085,3832.5,3832.4,1e-08]
[1754589475823,21.66821271,3832.5,3832.4,1e-08]
[1754589475981,21.91272074,3832.5,3832.4,1e-08]
[1754589476182,22.04312074,3832.5,3832.4,1e-08]
[1754589476584,22.95002074,3832.5,3832.4,1e-08]
[1754589478878,22.95004073,3832.5,3832.4,1e-08]
[1754589481300,22.95003454,3832.5,3832.4,1e-08]
[1754589481800,22.04313454,3832.5,3832.4,1e-08]
[1754589482202,22.99693454,3832.5,3832.4,1e-08]
[1754589482447,17.91873454,3832.5,3832.4,1e-08]
[1754589482745,4.93387166,3832.5,3832.4,1e-08]
[1754589482927,0.37692183,3832.5,3832.4,0.77730001]
[1754589483125,4.37092183,3832.5,3832.4,5.01718785]
[1754589483638,4.24052183,3832.5,3832.4,5.01718785]
[1754589483808,4.24043636,3832.5,3832.4,5.01718785]
[1754589484005,4.24043636,3832.5,3832.4,2.40785689]
[1754589484423,4.24043636,3832.5,3832.4,5.01718785]
[1754589485042,4.24043636,3832.5,3832.4,2.40785689]
[1754589485238,4.24043636,3832.5,3832.4,2.11295689]
[1754589485538,4.24043636,3832.5,3832.4,0.48240001]
[1754589485921,4.24043636,3832.5,3832.4,3.22213097]
[1754589486238,4.24043636,3832.5,3832.4,3.51703097]
[1754589486441,3.996,3832.5,3832.4,3.51703097]
[1754589486607,3.996,3832.5,3832.4,0.90770001]
[1754589486808,3.996,3832.5,3832.4,1.22556024]
[1754589487727,3.996,3832.5,3832.4,3.8348912]
[1754589489658,3.996,3832.5,3832.4,1.22556024]
[1754589490448,3.996,3832.5,3832.4,0.74316024]
[1754589490654,3.996,3832.5,3832.4,0.13040001]
[1754589491363,0.002,3832.5,3832.4,0.13040001]
[1754589491569,3.995,3832.5,3832.4,3.51703097]
[1754589492070,0.002,3832.5,3832.4,4.06703097]
[1754589492379,0.002,3832.5,3832.4,9.02656237]
[1754589494148,0.002,3832.5,3832.4,8.73166237]
[1754589494344,0.002,3832.5,3832.4,6.28973097]
[1754589495459,0.002,3832.5,3832.4,6.77213097]
[1754589495833,0.002,3832.5,3832.4,7.06703097]
[1754589499371,0.002,3832.5,3832.4,11.20663097]
[1754589499579,0.002,3832.5,3832.4,11.33703097]
[1754589499881,0.002,3832.5,3832.4,14.02091025]
[1754589503087,0.002,3832.5,3832.4,18.01291025]
[1754589508035,0.002,3832.9,3832.8,13.46746421]
[1754589508196,0.002,3832.9,3832.8,20.58986421]
[1754589508396,0.002,3832.9,3832.8,21.08506421]
[1754589508599,0.002,3832.9,3832.8,23.74490077]
[1754589510730,0.002,3832.9,3832.8,28.01490077]
[1754589511116,0.002,3832.9,3832.8,27.51970077]
[1754589511719,0.002,3832.9,3832.8,28.01490077]
[1754589513028,0.002,3832.9,3832.8,27.51970077]
[1754589514830,0.9493,3832.9,3832.8,16.66029521]
[1754589515029,0.9493,3832.9,3832.8,12.66929521]
[1754589515230,0.9493,3832.9,3832.8,13.21929521]
[1754589515832,0.002,3832.9,3832.8,13.21929521]
[1754589516032,0.002,3832.9,3832.8,23.52770077]
[1754589516405,0.4933,3832.9,3832.8,23.52770077]
[1754589516619,0.4933,3832.9,3832.8,19.25770077]
[1754589516819,0.9493,3832.9,3832.8,19.25770077]
[1754589523314,0.002,3832.9,3832.8,19.25770077]
[1754589525664,0.4933,3832.9,3832.8,19.25770077]
[1754589526166,0.002,3832.9,3832.8,19.25770077]
[1754589527639,0.4933,3832.9,3832.8,19.25770077]
[1754589528351,0.9493,3832.9,3832.8,19.25770077]
[1754589528545,0.002,3832.9,3832.8,19.25770077]
[1754589528746,0.9493,3832.9,3832.8,19.25770077]
[1754589531186,0.002,3832.9,3832.8,19.25770077]
[1754589532321,0.4933,3832.9,3832.8,19.25770077]
[1754589532633,0.9493,3832.9,3832.8,5.73945865]
[1754589533385,0.9493,3832.9,3832.8,0.1304]
[1754589533627,0.9493,3832.9,3832.5,3.99]
[1754589533831,0.002,3832.9,3832.7,0.1304]
[1754589533997,0.9473,3832.8,3832.7,0.1304]
[1754589534337,0.9473,3832.8,3832.7,2.73952672]
[1754589534831,0.002,3832.9,3832.8,2.60905865]
[1754589535034,0.002,3832.9,3832.8,4.57375774]
[1754589535230,0.002,3832.9,3832.8,8.56375774]
[1754589537527,0.9493,3832.9,3832.8,8.56375774]
[1754589537838,0.002,3832.9,3832.8,11.56375774]
[1754589538511,0.9506,3832.9,3832.8,9.59905865]
[1754589541303,0.9506,3832.9,3832.8,2.60905865]
[1754589543949,0.002,3832.9,3832.8,2.60905865]
[1754589544314,0.9506,3832.9,3832.8,2.60905865]
[1754589546910,0.002,3832.9,3832.8,2.60905865]
[1754589547156,0.002,3832.9,3832.8,5.00086423]
[1754589547511,0.002,3832.9,3832.8,22.29826979]
[1754589547948,0.002,3832.9,3832.8,22.76286979]
[1754589548107,0.9506,3832.9,3832.8,11.98986423]
[1754589550029,0.002,3832.9,3832.8,11.98986423]
[1754589550616,0.9506,3832.9,3832.8,11.98986423]
[1754589551747,0.002,3832.9,3832.8,11.98986423]
[1754589554917,0.9506,3832.9,3832.8,11.98986423]
[1754589555749,0.9506,3832.9,3832.8,9.59805865]
[1754589557533,0.9506,3832.9,3832.8,5.60905865]
[1754589563631,0.002,3832.9,3832.8,5.60905865]
[1754589566060,0.4942,3832.9,3832.8,5.60905865]
[1754589566583,0.9506,3832.9,3832.8,5.60905865]
[1754589567954,0.9506,3832.9,3832.5,0.1370461]
[1754589568159,0.002,3832.9,3832.5,0.2674461]
[1754589568467,0.9473,3832.8,3832.7,2.60912672]
[1754589569186,0.002,3832.9,3832.8,2.60905865]
[1754589569908,0.002,3832.9,3832.8,3.25821177]
[1754589570688,0.9493,3832.9,3832.8,3.25821177]
[1754589571001,0.9493,3832.9,3832.8,2.73945865]
[1754589571490,0.002,3832.9,3832.8,2.73945865]
[1754589573783,0.002,3832.9,3832.8,6.75295865]
[1754589573985,0.002,3832.9,3832.8,7.04785865]